bitfinex/quotes_BTCUSD_20251117
["timestamp","ask_amount","ask_price","bid_price","bid_amount"]
[1763410659529,0.05406722,92149.0,92094.0,0.00043965]
[1763410659749,0.05406722,92149.0,92095.0,0.04341874]
[1763410659958,0.05406722,92149.0,92144.0,1e-08]
[1763410661014,0.05406722,92149.0,92117.0,0.04341874]
[1763410661224,0.0002,92150.0,92136.0,0.0415073]
[1763410661455,0.0540484,92145.0,92118.0,0.10859296]
[1763410661665,0.70468845,92130.0,92117.0,0.10872467]
[1763410661890,0.70468845,92130.0,92118.0,0.01087247]
[1763410662297,0.01019998,92150.0,92118.0,0.01087247]
[1763410662298,0.70468845,92140.0,92118.0,0.01087247]
[1763410662506,0.70468845,92140.0,92133.0,0.10859296]
[1763410662714,0.0002,92150.0,92133.0,0.10859296]
[1763410662928,0.70468845,92150.0,92133.0,0.10859296]
[1763410663129,0.70468845,92150.0,92134.0,0.0108593]
[1763410663337,0.07040462,92149.0,92118.0,0.01087247]
[1763410663536,0.70468845,92130.0,92118.0,0.01087247]
[1763410664182,0.05463469,92150.0,92118.0,0.01087247]
[1763410664183,0.75932314,92150.0,92118.0,0.01087247]
[1763410664363,0.0002,92160.0,92136.0,0.10859296]
[1763410664611,0.70468845,92150.0,92137.0,0.0108593]
[1763410665236,0.01627798,92149.0,92137.0,0.0108593]
[1763410665440,0.70468845,92150.0,92118.0,0.01287247]
[1763410665614,0.05451954,92159.0,92118.0,0.01287247]
[1763410665615,0.70468845,92130.0,92118.0,0.01287247]
[1763410666263,0.70468845,92130.0,92117.0,0.10872467]
[1763410666264,0.01628151,92129.0,92117.0,0.00013171]
[1763410666388,0.70468845,92127.0,92117.0,0.00013171]
[1763410666792,0.01628204,92126.0,92117.0,0.00013171]
[1763410667862,0.00999998,92150.0,92117.0,0.00013171]
[1763410668084,0.95863669,92127.0,92117.0,0.00013171]
[1763410668629,0.01628204,92126.0,92117.0,0.00113171]
[1763410668831,0.01628204,92126.0,92117.0,0.00013171]
[1763410669035,0.95863669,92127.0,92118.0,0.10859296]
[1763410669288,0.95863669,92127.0,92119.0,0.01087247]
[1763410669435,0.95863669,92127.0,92117.0,0.00113171]
[1763410669643,0.95863669,92127.0,92118.0,0.10859296]
[1763410670047,0.95863669,92127.0,92117.0,0.00113171]
[1763410670048,0.01628204,92126.0,92117.0,0.00113171]
[1763410670710,0.01628204,92126.0,92117.0,0.00013171]
[1763410670908,0.00023124,92119.0,92118.0,0.10859296]
[1763410671824,0.70355424,92130.0,92118.0,0.10859296]
[1763410672017,0.0002,92160.0,92119.0,0.04341874]
[1763410672262,0.70355424,92150.0,92141.0,0.10859296]
[1763410673118,0.0002,92160.0,92141.0,0.10859296]
[1763410673364,0.70355424,92151.0,92142.0,0.0108593]
[1763410674449,0.70355424,92151.0,92142.0,0.01059463]
[1763410674871,0.70355424,92151.0,92142.0,0.01159463]
[1763410675309,0.0162778,92150.0,92142.0,0.01059463]
[1763410675479,0.0162778,92150.0,92143.0,0.01191876]
[1763410676091,0.70355424,92151.0,92143.0,0.01191876]
[1763410677297,0.0162778,92150.0,92143.0,0.01191876]
[1763410677504,0.03627778,92150.0,92142.0,0.001]
[1763410677700,0.00023121,92127.0,92119.0,0.02917081]
[1763410678280,0.70355424,92140.0,92126.0,0.02917081]
[1763410678505,0.70355424,92140.0,92139.0,0.10859296]
[1763410680218,0.70355424,92140.0,92139.0,0.11059296]
[1763410680424,0.70355424,92140.0,92139.0,0.12165226]
[1763410680654,0.70355424,92140.0,92139.0,0.0130593]
[1763410680846,0.70355424,92140.0,92126.0,0.02917715]
[1763410681045,0.70355424,92140.0,92139.0,0.001]
[1763410681633,0.72355422,92140.0,92117.0,0.00013171]
[1763410681834,0.70355424,92127.0,92117.0,0.00013171]
[1763410682403,0.00999998,92130.0,92118.0,0.10859296]
[1763410682615,0.70355424,92128.0,92119.0,0.01087247]
[1763410682820,0.0002,92160.0,92119.0,0.01087247]
[1763410683023,0.70355424,92140.0,92132.0,0.10859296]
[1763410683471,0.70355424,92140.0,92139.0,0.001]
[1763410683923,0.70355424,92140.0,92132.0,0.10859296]
[1763410684089,0.00037567,92140.0,92133.0,0.0108593]
[1763410684293,0.70355424,92142.0,92133.0,0.0108593]
[1763410684520,0.70355424,92142.0,92132.0,0.001]
[1763410684724,0.02999996,92140.0,92119.0,0.01087247]
[1763410684922,0.70355424,92129.0,92119.0,0.01087247]
[1763410685128,0.01628169,92128.0,92112.0,0.02917715]
[1763410685438,0.02019998,92160.0,92121.0,0.04341874]
[1763410685439,0.70355424,92150.0,92121.0,0.04341874]
[1763410685619,0.70355424,92131.0,92123.0,0.02917715]
[1763410685934,0.70355424,92131.0,92120.0,0.10859296]
[1763410686121,0.70355424,92131.0,92121.0,0.01764869]
[1763410686330,0.70355424,92131.0,92122.0,0.02917715]
[1763410686710,0.70355424,92131.0,92123.0,0.02917715]
[1763410687090,0.70355424,92131.0,92122.0,0.02917715]
[1763410687332,0.70355424,92131.0,92126.0,0.03858508]
[1763410687464,0.70355424,92150.0,92129.0,0.05787763]
[1763410687664,0.70355424,92150.0,92142.0,0.02927249]
[1763410687881,0.70355424,92150.0,92127.0,0.02227044]
[1763410687882,0.01627798,92149.0,92139.0,0.02927249]
[1763410688102,0.02999996,92140.0,92131.0,0.02927249]
[1763410688304,0.00999998,92140.0,92130.0,0.02927249]
[1763410688503,0.00999998,92140.0,92125.0,0.02927249]
[1763410688704,0.00999998,92130.0,92123.0,0.02927249]
[1763410688912,0.00999998,92150.0,92128.0,0.02927249]
[1763410689109,0.71355422,92140.0,92139.0,0.02934673]
[1763410689426,0.70355424,92149.0,92139.0,0.00683767]
[1763410689631,0.70355424,92149.0,92141.0,0.02934673]
[1763410689833,0.01019998,92160.0,92142.0,0.02934673]
[1763410690031,0.70355424,92150.0,92146.0,0.10859296]
[1763410690394,0.01627798,92149.0,92145.0,0.03902998]
[1763410690605,0.01627798,92149.0,92146.0,0.02934382]
[1763410690809,0.01627798,92149.0,92139.0,0.02934382]
[1763410691008,0.0202824,92148.0,92140.0,0.02934382]
[1763410691251,0.03656073,92147.0,92138.0,0.02934382]
[1763410691460,0.02028141,92146.0,92140.0,0.02934382]
[1763410691637,0.01627869,92145.0,92140.0,0.00013171]
[1763410691846,0.01627816,92148.0,92140.0,0.00698226]
[1763410692055,0.02028519,92147.0,92140.0,0.00013171]
[1763410692333,0.02028519,92147.0,92128.0,0.02934382]
[1763410692334,0.02999996,92140.0,92128.0,0.02934382]
[1763410692503,0.95812585,92138.0,92124.0,0.02934382]
[1763410692801,0.00999998,92130.0,92123.0,0.02934382]
[1763410693032,0.0365667,92129.0,92124.0,0.00683738]
[1763410693234,0.00999998,92130.0,92124.0,0.03902998]
[1763410693442,0.00999998,92130.0,92127.0,0.0293516]
[1763410693660,0.00999998,92130.0,92107.0,0.0783946]
[1763410693661,0.00999998,92130.0,92128.0,0.0293516]
[1763410694020,0.09758,92151.0,92123.0,0.03902998]
[1763410694021,0.0002,92160.0,92129.0,0.03902998]
[1763410694220,0.95832585,92160.0,92155.0,0.03912667]
[1763410694416,0.95832585,92160.0,92139.0,0.0783946]
[1763410694417,0.95832585,92160.0,92157.0,0.02933558]
[1763410694623,0.95832585,92160.0,92151.0,0.02933558]
[1763410694624,0.01627621,92159.0,92151.0,0.02933558]
[1763410694801,0.02019998,92160.0,92144.0,0.02933558]
[1763410695169,0.02028357,92159.0,92143.0,0.02933558]
[1763410695347,0.01627639,92158.0,92144.0,0.03618181]
[1763410695549,0.95812585,92154.0,92144.0,0.00684623]
[1763410695778,0.95812585,92154.0,92130.0,0.0098575]
[1763410695779,0.01999998,92150.0,92142.0,0.02933558]
[1763410695982,0.01627727,92153.0,92142.0,0.02946722]
[1763410696200,0.01999998,92150.0,92142.0,0.02946722]
[1763410696403,0.01999998,92150.0,92142.0,0.00013164]
[1763410696726,0.95832585,92160.0,92142.0,0.00013164]
[1763410696924,0.95832585,92160.0,92142.0,0.00113164]
[1763410696925,0.01999998,92150.0,92142.0,0.00113164]
[1763410697134,0.01627798,92149.0,92142.0,0.00113164]
[1763410697335,0.95832585,92160.0,92142.0,0.00113164]
[1763410697336,0.0002,92160.0,92145.0,0.03912667]
[1763410697558,0.0002,92160.0,92158.0,0.02934564]
[1763410697848,0.0002,92160.0,92153.0,0.03912667]
[1763410698053,0.0002,92160.0,92130.0,0.0098575]
[1763410698054,0.0002,92160.0,92158.0,0.02934556]
[1763410698227,0.0002,92160.0,92130.0,0.0882521]
[1763410698228,0.0002,92160.0,92154.0,0.02934556]
[1763410699127,0.0002,92160.0,92148.0,0.02934556]
[1763410699128,0.03647602,92160.0,92148.0,0.02934556]
[1763410699337,0.03647602,92160.0,92141.0,0.03912667]
[1763410699338,0.01999998,92150.0,92141.0,0.02934556]
[1763410699537,0.07990798,92149.0,92135.0,0.02934556]
[1763410699752,0.07990798,92149.0,92130.0,0.0098575]
[1763410699753,0.06363,92143.0,92133.0,0.02934556]
[1763410699962,0.06363,92143.0,92131.0,0.02934556]
[1763410700173,0.06363,92143.0,92130.0,0.0098575]
[1763410700174,0.16135,92143.0,92130.0,0.03920306]
[1763410700393,0.01999998,92130.0,92121.0,0.02934556]
[1763410700614,0.1979218,92143.0,92122.0,0.00684722]
[1763410700615,1.00376585,92131.0,92122.0,0.00684722]
[1763410700855,1.00376585,92131.0,92091.0,0.00016]
[1763410700856,0.06192134,92130.0,92117.0,0.02934556]
[1763410701084,0.06192134,92130.0,92114.0,0.02934556]
[1763410701308,0.95812585,92119.0,92113.0,0.02934556]
[1763410701550,0.95812585,92123.0,92114.0,0.02934556]
[1763410701774,0.01628275,92122.0,92114.0,0.02934556]
[1763410701998,0.95812585,92123.0,92113.0,0.02934556]
[1763410702214,0.95812585,92123.0,92115.0,0.02934556]
[1763410702477,0.00013164,92131.0,92122.0,0.0458]
[1763410702698,0.00013164,92131.0,92121.0,0.001]
[1763410702699,0.00013164,92131.0,92123.0,0.02934556]
[1763410702927,0.00013164,92131.0,92130.0,0.0458]
[1763410703162,0.00013164,92131.0,92130.0,0.07514556]
[1763410703384,0.00013164,92131.0,92130.0,0.11846652]
[1763410704093,0.00013164,92131.0,92130.0,0.15759319]
[1763410704305,0.00013164,92131.0,92130.0,0.11846652]
[1763410704500,0.00013164,92131.0,92130.0,0.11179351]
[1763410704667,0.00013164,92131.0,92130.0,0.07266652]
[1763410704859,0.00013164,92131.0,92130.0,0.11846652]
[1763410705478,0.00013164,92131.0,92130.0,0.07466652]
[1763410705801,0.00013164,92131.0,92130.0,0.12046652]
[1763410706155,0.00013164,92131.0,92130.0,0.11846652]
[1763410706356,0.00013164,92131.0,92130.0,0.12046652]
[1763410706780,0.00013164,92131.0,92130.0,0.11846652]
[1763410706987,0.95812585,92140.0,92134.0,0.0458]
[1763410707165,0.95812585,92140.0,92137.0,0.05868641]
[1763410707360,0.95812585,92147.0,92139.0,0.03912367]
[1763410707564,0.01627851,92146.0,92139.0,0.03912367]
[1763410707767,0.00023115,92143.0,92139.0,0.03912367]
[1763410708016,0.00023115,92143.0,92140.0,0.0458]
[1763410708224,0.00023115,92143.0,92142.0,0.0458]
[1763410708353,0.95832585,92160.0,92146.0,0.0458]
[1763410708557,0.95832585,92160.0,92159.0,0.15439296]
[1763410708757,0.0002,92160.0,92159.0,0.0458]
[1763410709800,0.0002,92160.0,92159.0,0.0468]
[1763410710036,0.0002,92160.0,92159.0,0.0926]
[1763410710571,0.0002,92160.0,92159.0,0.10562097]
[1763410710766,0.0002,92160.0,92159.0,0.13095399]
[1763410710992,0.95812585,92169.0,92160.0,0.00999999]
[1763410711166,0.95825751,92169.0,92162.0,0.0783946]
[1763410711342,0.95825751,92169.0,92160.0,0.05579999]
[1763410711343,0.95825751,92169.0,92168.0,0.0458]
[1763410711547,0.00013166,92169.0,92168.0,0.0458]
[1763410711755,0.00013166,92169.0,92168.0,0.10401946]
[1763410712983,0.00013166,92169.0,92164.0,0.03904078]
[1763410713184,0.00013166,92169.0,92168.0,0.002]
[1763410714172,0.00013166,92169.0,92155.0,0.02928169]
[1763410714379,0.95812585,92165.0,92155.0,0.02928169]
[1763410714567,0.01627533,92164.0,92153.0,0.02928169]
[1763410714769,0.95812585,92163.0,92150.0,0.02928169]
[1763410715020,0.01627568,92162.0,92148.0,0.00692196]
[1763410715334,0.01627568,92162.0,92148.0,0.03620365]
[1763410715470,0.00013166,92169.0,92161.0,0.0458]
[1763410715670,0.00013166,92169.0,92155.0,0.001]
[1763410715671,0.00013166,92169.0,92155.0,0.03028169]
[1763410715865,0.00013166,92169.0,92156.0,0.01281447]
[1763410716116,0.95812585,92166.0,92156.0,0.01281447]
[1763410716698,0.01469441,92165.0,92152.0,0.02928169]
[1763410716906,0.95812585,92162.0,92148.0,0.00792196]
[1763410717072,0.01627586,92161.0,92149.0,0.02928169]
[1763410717278,0.01627586,92161.0,92148.0,0.00792196]
[1763410717916,0.01627586,92161.0,92148.0,0.00692196]
[1763410718118,0.01627586,92161.0,92147.0,0.02928169]
[1763410718314,0.01627586,92161.0,92156.0,0.001]
[1763410718644,0.01627586,92161.0,92146.0,0.02928169]
[1763410718869,0.09991,92168.0,92135.0,0.0458]
[1763410718870,0.76198812,92156.0,92143.0,0.02928169]
[1763410719009,0.76198812,92153.0,92148.0,0.001]
[1763410719224,0.01627745,92152.0,92148.0,0.001]
[1763410719424,0.01627621,92159.0,92148.0,0.001]
[1763410719621,0.06504621,92159.0,92148.0,0.001]
[1763410719834,0.17363917,92159.0,92148.0,0.001]
[1763410720041,0.06245,92149.0,92148.0,0.001]
[1763410720722,0.01627657,92157.0,92148.0,0.001]
[1763410720974,0.09991,92156.0,92123.0,0.02928169]
[1763410721179,0.01627692,92155.0,92146.0,0.001]
[1763410721596,0.06245,92147.0,92123.0,0.02928169]
[1763410721796,0.76198812,92133.0,92124.0,0.00750817]
[1763410722004,0.01137943,92132.0,92120.0,0.02928169]
[1763410722246,0.01137943,92132.0,92121.0,0.02928169]
[1763410722247,0.76198812,92130.0,92121.0,0.02928169]
[1763410722425,0.01628151,92129.0,92120.0,0.02928169]
[1763410722635,1.54025758,92130.0,92118.0,0.02928169]
[1763410722842,0.76198812,92130.0,92120.0,0.02928169]
[1763410723078,0.15736296,92159.0,92129.0,0.0458]
[1763410723079,0.04877,92159.0,92129.0,0.0458]
[1763410723289,0.76198812,92139.0,92129.0,0.0458]
[1763410723529,0.01627992,92138.0,92121.0,0.04895182]
[1763410723746,0.76198812,92131.0,92121.0,0.01967013]
[1763410723916,0.01628134,92130.0,92123.0,0.001]
[1763410724132,0.76198812,92131.0,92123.0,0.001]
[1763410724133,0.01628151,92129.0,92123.0,0.001]
[1763410724284,0.01628151,92129.0,92118.0,0.10872465]
[1763410724285,0.01628134,92130.0,92118.0,0.02941338]
[1763410724497,0.01628134,92130.0,92129.0,0.001]
[1763410724937,0.04877,92137.0,92118.0,0.00013169]
[1763410725167,0.76198812,92128.0,92118.0,0.00013169]
[1763410725375,0.01628187,92127.0,92118.0,0.001]
[1763410725834,0.09991,92158.0,92126.0,0.0458]
[1763410726179,1.52397624,92136.0,92127.0,0.0458]
[1763410726407,0.00023112,92151.0,92128.0,0.02218535]
[1763410726639,0.76198812,92137.0,92135.0,0.0458]
[1763410726862,0.76198812,92145.0,92135.0,0.0458]
[1763410727079,0.76198812,92145.0,92136.0,0.05496]
[1763410727287,0.76198812,92146.0,92136.0,0.05496]
[1763410727729,0.76198812,92146.0,92137.0,0.0458]
[1763410728360,0.01627869,92145.0,92137.0,0.0458]
[1763410728579,0.76198812,92146.0,92136.0,0.01016]
[1763410728784,0.00023112,92151.0,92145.0,0.0458]
[1763410728916,0.00023112,92151.0,92140.0,0.03904078]
[1763410729118,0.00023112,92151.0,92150.0,0.0458]
[1763410729533,0.00023112,92151.0,92150.0,0.0916]
[1763410730795,0.00023112,92151.0,92150.0,0.0468]
[1763410731002,0.00023112,92151.0,92150.0,0.0926]
[1763410731207,0.00023112,92151.0,92150.0,0.14658106]
[1763410731413,0.00023112,92151.0,92150.0,0.19764408]
[1763410731622,0.00023112,92151.0,92150.0,0.14758106]
[1763410732241,0.00023112,92151.0,92150.0,0.20613786]
[1763410732454,0.00023112,92151.0,92150.0,0.1606033]
[1763410732670,0.0002,92180.0,92171.0,0.04341874]
[1763410732909,0.00013169,92180.0,92179.0,0.09647521]
[1763410733137,0.00013169,92180.0,92179.0,0.10742465]
[1763410734677,0.00013169,92180.0,92179.0,0.10942465]
[1763410735918,0.00013169,92180.0,92179.0,0.10742465]
[1763410736119,0.00013169,92180.0,92179.0,0.01094944]
[1763410736291,0.00013169,92180.0,92179.0,0.002]
[1763410736761,0.00013169,92180.0,92170.0,0.00999999]
[1763410737083,0.00013169,92180.0,92179.0,0.11059296]
[1763410737415,0.00013169,92180.0,92179.0,0.10859296]
[1763410737617,5.573e-05,92180.0,92179.0,0.10859296]
[1763410737840,5.573e-05,92180.0,92179.0,0.12145226]
[1763410738443,5.573e-05,92180.0,92179.0,0.0128593]
[1763410738655,5.573e-05,92180.0,92179.0,0.002]
[1763410738822,0.00089331,92180.0,92179.0,0.002]
[1763410739422,0.00089331,92180.0,92164.0,0.10859296]
[1763410739624,5.573e-05,92180.0,92178.0,0.10859296]
[1763410739825,5.573e-05,92180.0,92179.0,0.01501814]
[1763410740033,5.573e-05,92180.0,92179.0,0.01436111]
[1763410740384,5.573e-05,92180.0,92179.0,0.01236111]
[1763410740813,5.573e-05,92180.0,92164.0,0.11059296]
[1763410740978,0.76198812,92174.0,92164.0,0.002]
[1763410741186,0.01627374,92173.0,92164.0,0.002]
[1763410742696,0.76198812,92174.0,92140.0,0.00999999]
[1763410742878,5.573e-05,92180.0,92140.0,0.00999999]
[1763410742879,5.573e-05,92180.0,92155.0,0.10859296]
[1763410743086,0.76198812,92165.0,92144.0,0.0585303]
[1763410743303,0.76198812,92153.0,92141.0,0.01771233]
[1763410743672,0.76198812,92153.0,92131.0,0.0585303]
[1763410743673,0.01627745,92152.0,92131.0,0.0585303]
[1763410743881,0.01627745,92152.0,92120.0,0.07804041]
[1763410743882,0.76198812,92141.0,92140.0,0.001]
[1763410744085,0.04796,92159.0,92140.0,0.001]
[1763410744086,0.04341874,92149.0,92140.0,0.001]
[1763410744315,0.04341874,92149.0,92107.0,0.0585303]
[1763410744316,0.04341874,92147.0,92107.0,0.0585303]
[1763410744688,0.04341874,92147.0,92120.0,0.0108593]
[1763410744689,1.52397624,92129.0,92120.0,0.0108593]
[1763410744910,0.01628169,92128.0,92104.0,0.10866892]
[1763410745119,0.76198812,92114.0,92104.0,7.596e-05]
[1763410745341,0.01628434,92113.0,92104.0,7.596e-05]
[1763410746320,0.76198812,92114.0,92104.0,7.596e-05]
[1763410746572,0.76198812,92114.0,92105.0,0.10859296]
[1763410746778,0.76198812,92160.0,92110.0,0.00999999]
[1763410746979,0.76198812,92130.0,92111.0,0.01302775]
[1763410747163,0.76198812,92130.0,92129.0,0.10859296]
[1763410747452,0.76198812,92139.0,92129.0,0.10859296]
[1763410747649,0.76198812,92139.0,92130.0,0.0108593]
[1763410748092,0.76198812,92139.0,92131.0,0.01302493]
[1763410748305,0.76198812,92139.0,92130.0,0.0108593]
[1763410748942,0.76198812,92139.0,92129.0,0.10859296]
[1763410749438,0.76198812,92139.0,92129.0,0.11059296]
[1763410749914,0.76198812,92139.0,92105.0,0.10859296]
[1763410749915,0.01627992,92138.0,92111.0,0.0585303]
[1763410750126,0.01627992,92138.0,92129.0,0.002]
[1763410750335,0.04341874,92146.0,92129.0,0.002]
[1763410750714,0.00023109,92159.0,92129.0,0.002]
[1763410750916,0.00023109,92159.0,92130.0,0.10859296]
[1763410751129,0.76198812,92140.0,92131.0,0.02388423]
[1763410751331,0.76198812,92140.0,92131.0,0.0108593]
[1763410751533,0.76198812,92140.0,92132.0,0.01302479]
[1763410751714,0.00023109,92159.0,92132.0,0.01302479]
[1763410752078,0.00023109,92159.0,92130.0,0.10859296]
[1763410752079,0.76198812,92142.0,92133.0,0.01324771]
[1763410752624,0.76198812,92142.0,92133.0,0.01332367]
[1763410753871,0.76198812,92142.0,92133.0,0.01532367]
[1763410754278,0.76198812,92142.0,92134.0,0.0130245]
[1763410754447,0.76198812,92144.0,92134.0,0.0130245]
[1763410754659,0.76198812,92144.0,92135.0,0.01369411]
[1763410755116,0.01627904,92143.0,92135.0,0.01369411]
[1763410755566,0.76198812,92144.0,92136.0,0.01302422]
[1763410755765,0.76198812,92144.0,92135.0,0.01369411]
[1763410756164,0.76198812,92145.0,92135.0,0.01369411]
[1763410756400,0.76198812,92145.0,92136.0,0.01908933]
[1763410757469,0.00023109,92159.0,92136.0,0.01908933]
[1763410757666,0.76198812,92146.0,92136.0,0.01908933]
[1763410758076,0.01627869,92145.0,92135.0,0.002]
[1763410758243,0.01627869,92145.0,92133.0,7.596e-05]
[1763410758447,0.01627869,92145.0,92136.0,0.002]
[1763410759060,0.01627869,92145.0,92133.0,7.596e-05]
[1763410759332,0.04701,92134.0,92133.0,0.00207596]
[1763410759465,0.04341874,92133.0,92099.0,0.0585303]
[1763410759674,0.04341874,92115.0,92106.0,0.00013164]
[1763410759877,0.04341874,92113.0,92106.0,0.00013164]
[1763410760107,0.09042874,92107.0,92106.0,0.00013164]
[1763410761263,0.04341874,92106.0,92061.0,0.0585303]
[1763410761388,0.76198812,92073.0,92064.0,0.01671233]
[1763410762003,0.01629159,92072.0,92064.0,0.01671233]
[1763410762202,0.01629159,92072.0,92050.0,0.0589303]
[1763410762203,0.01629159,92072.0,92050.0,0.0004]
[1763410762486,0.01629159,92072.0,92050.0,0.01039999]
[1763410762694,4.38e-05,92072.0,92063.0,0.10859296]
[1763410762921,4.38e-05,92072.0,92050.0,0.02343638]
[1763410763163,0.76198812,92060.0,92050.0,0.0004]
[1763410763361,0.76198812,92060.0,92051.0,0.02063874]
[1763410765477,0.76198812,92060.0,92051.0,0.02263874]
[1763410765863,0.76198812,92060.0,92051.0,0.02063874]
[1763410766317,0.76198812,92060.0,92051.0,0.02263874]
[1763410766519,0.76198812,92060.0,92052.0,0.01316317]
[1763410767444,0.01629389,92059.0,92050.0,0.0004]
[1763410767670,0.01629389,92059.0,92051.0,0.002]
[1763410767873,0.76198812,92062.0,92052.0,0.10859296]
[1763410768090,0.76198812,92062.0,92053.0,0.01303596]
[1763410768405,0.76198812,92062.0,92054.0,0.01240289]
[1763410768833,0.76198812,92062.0,92050.0,0.0024]
[1763410768994,0.76198812,92062.0,92050.0,0.0004]
[1763410769396,0.76198812,92062.0,92053.0,0.002]
[1763410770605,0.76198812,92062.0,92050.0,0.0004]
[1763410770828,0.76198812,92062.0,92051.0,0.10859296]
[1763410771040,0.76198812,92062.0,92052.0,0.0110993]
[1763410771233,1.52397624,92062.0,92050.0,0.0004]
[1763410771435,0.15813228,92061.0,92050.0,0.0004]
[1763410771716,0.04341874,92050.0,92020.0,0.0004]
[1763410771914,0.04533,92030.0,92020.0,0.0004]
[1763410772107,0.05971635,92038.0,92020.0,0.0004]
[1763410772246,0.04533,92033.0,92020.0,0.0004]
[1763410772451,0.01629867,92032.0,92020.0,0.0004]
[1763410772662,0.04341874,92031.0,92020.0,0.0004]
[1763410772899,0.01629867,92032.0,92020.0,0.0004]
[1763410772900,0.10423874,92030.0,92020.0,0.0004]
[1763410773109,0.04341874,92020.0,91978.0,0.03886416]
[1763410773446,0.76198812,91988.0,91980.0,0.00999999]
[1763410773595,0.76198812,91988.0,91979.0,0.01474571]
[1763410774420,0.76198812,91988.0,91980.0,0.00999999]
[1763410774657,0.76198812,91988.0,91981.0,0.02772865]
[1763410775224,0.76198812,91988.0,91981.0,0.01468248]
[1763410775625,0.76198812,91988.0,91981.0,0.02772865]
[1763410775969,0.76198812,91988.0,91981.0,0.01468248]
[1763410777088,0.76198812,91988.0,91981.0,0.01668248]
[1763410777294,0.76198812,91988.0,91982.0,0.01357151]
[1763410778333,0.76198812,91988.0,91983.0,0.01304588]
[1763410778538,0.76198812,92000.0,91990.0,0.00999999]
[1763410778743,0.76198812,92000.0,91996.0,0.10859296]
[1763410778988,0.76198812,92006.0,91997.0,0.0118593]
[1763410780844,0.96047159,92007.0,91998.0,0.01304376]
[1763410781219,0.96047159,92040.0,91998.0,0.01304376]
[1763410781375,0.96047159,92008.0,92000.0,0.00999999]
[1763410781580,0.96047159,92008.0,92001.0,0.01304333]
[1763410781910,0.04533,92070.0,92002.0,0.01454956]
[1763410781911,0.96047159,92020.0,92002.0,0.01454956]
[1763410782108,0.96047159,92020.0,92010.0,0.00999999]
[1763410782322,0.96047159,92020.0,92016.0,0.10859296]
[1763410782722,0.96047159,92020.0,92002.0,0.01454956]
[1763410783068,0.96047159,92012.0,92003.0,0.01231425]
[1763410783254,0.96047159,92012.0,92003.0,0.0127539]
[1763410784614,0.77783862,92012.0,92003.0,0.0127539]
[1763410784826,0.77783862,92012.0,92003.0,0.0147539]
[1763410785747,0.04341874,92046.0,92003.0,0.0147539]
[1763410785968,0.96047159,92013.0,92003.0,0.0147539]
[1763410786611,0.96047159,92013.0,92003.0,0.0127539]
[1763410786788,0.01630222,92012.0,92003.0,0.0137539]
[1763410786987,0.96047159,92013.0,92003.0,0.00143965]
[1763410787196,0.09842,92046.0,92005.0,0.10859296]
[1763410787402,0.96047159,92013.0,92003.0,0.00043965]
[1763410788012,0.96047159,92013.0,92003.0,0.00243965]
[1763410788013,0.01630222,92012.0,92003.0,0.00243965]
[1763410788274,0.96047159,92013.0,92003.0,0.00243965]
[1763410788685,0.00539476,92012.0,92003.0,0.00243965]
[1763410788895,0.06082,92004.0,92003.0,0.00243965]
[1763410789094,0.10423874,92004.0,92003.0,0.00243965]
[1763410789215,0.2080535,92004.0,92003.0,0.00043965]
[1763410789658,0.2080535,92004.0,92003.0,0.00243965]
[1763410790122,0.2080535,92004.0,92003.0,0.00043965]
[1763410790354,0.2080535,92004.0,92003.0,0.00219286]
[1763410790766,0.04341874,92003.0,91960.0,0.10859296]
[1763410790980,0.96047159,91975.0,91961.0,0.01376327]
[1763410791184,0.96047159,91971.0,91961.0,0.02681227]
[1763410791632,0.96047159,91971.0,91961.0,0.01376327]
[1763410791934,0.96047159,91971.0,91962.0,0.01518361]
[1763410792148,0.00539476,91970.0,91962.0,0.01518361]
[1763410792564,0.00539476,91970.0,91960.0,0.10903304]
[1763410792565,0.00539476,91970.0,91960.0,0.00044008]
[1763410793185,0.00539476,91970.0,91962.0,0.002]
[1763410793624,0.00539476,91970.0,91960.0,0.00044008]
[1763410794032,0.96047159,91971.0,91960.0,0.00144008]
[1763410795066,0.96047159,91971.0,91960.0,0.00044008]
[1763410795435,0.96047159,91971.0,91960.0,0.00144008]
[1763410796251,0.96047159,91971.0,91960.0,0.00044008]
[1763410796675,0.96047159,91971.0,91960.0,0.00144008]
[1763410797728,0.00539476,91970.0,91960.0,0.00144008]
[1763410798168,0.96047159,91970.0,91960.0,0.00144008]
[1763410798503,0.04341874,91969.0,91960.0,0.00144008]
[1763410798719,0.04341874,91969.0,91960.0,0.00044008]
[1763410799038,0.04341874,91969.0,91960.0,0.00144008]
[1763410799433,0.96047159,91970.0,91960.0,0.00044008]
[1763410799628,0.96047159,91970.0,91960.0,0.00144008]
[1763410800299,0.04341874,91969.0,91960.0,0.00144008]
[1763410800500,0.04341874,91961.0,91960.0,0.00144008]
[1763410800777,0.96047159,91970.0,91960.0,0.00144008]
[1763410801141,0.96047159,91970.0,91960.0,0.00044008]
[1763410801524,0.96047159,91970.0,91960.0,0.00144008]
[1763410801940,0.96047159,91970.0,91960.0,0.00044008]
[1763410802342,0.96047159,91970.0,91969.0,0.00098498]
[1763410802523,0.0004,91971.0,91969.0,0.00098498]
[1763410802904,0.0004,91971.0,91960.0,0.00044008]
[1763410803077,0.0004,91971.0,91960.0,0.00144008]
[1763410803078,0.96047159,91970.0,91960.0,0.00144008]
[1763410803802,0.04341874,91969.0,91960.0,0.00144008]
[1763410804316,0.96047159,91970.0,91960.0,0.00044008]
[1763410804545,0.96047159,91970.0,91969.0,0.001]
[1763410804750,0.0004,91971.0,91969.0,0.001]
[1763410805163,0.0004,91971.0,91964.0,0.02903975]
[1763410805164,0.0004,91971.0,91963.0,0.02903975]
[1763410805363,0.0004,91971.0,91962.0,0.10859296]
[1763410805364,0.0004,91971.0,91965.0,0.02903975]
[1763410805567,0.0004,91971.0,91966.0,0.02903975]
[1763410805690,0.0004,91971.0,91967.0,0.01304815]
[1763410805889,0.0004,91971.0,91968.0,0.04208776]
[1763410806151,0.0004,91971.0,91969.0,0.01504787]
[1763410806306,0.0004,91971.0,91970.0,0.00677193]
[1763410806508,0.0004,91971.0,91970.0,0.05019067]
[1763410807584,0.0004,91971.0,91970.0,0.0632384]
[1763410807785,0.0004,91971.0,91970.0,0.05019067]
[1763410807930,0.0004,91971.0,91970.0,0.05114668]
[1763410808134,0.0004,91971.0,91970.0,0.06419441]
[1763410808341,0.96047159,92020.0,92000.0,0.00999999]
[1763410808508,0.13760128,92083.0,92000.0,0.00999999]
[1763410808509,0.96047159,92010.0,92007.0,0.03898303]
[1763410808723,0.96047159,92017.0,92009.0,0.14757599]
[1763410808962,0.96047159,92017.0,92015.0,0.02923526]
[1763410809221,0.96047159,92025.0,92016.0,0.01304121]
[1763410809466,0.96047159,92025.0,92019.0,0.02923526]
[1763410809643,0.96047159,92025.0,92022.0,0.02923526]
[1763410809856,0.09237,92075.0,92024.0,0.10859296]
[1763410809857,0.96047159,92032.0,92024.0,0.10859296]